bitfinex-derivatives/quotes_SOLF0:USTF0_20240924
["timestamp","ask_amount","ask_price","bid_price","bid_amount"]
[1727157248725,9.46,146.49,146.45,14.1933]
[1727157248924,9.46,146.49,146.45,4.7333]
[1727157249331,3.4137,146.48,146.45,1.3192]
[1727157250229,12.8737,146.48,146.45,1.3192]
[1727157250533,9.46,146.48,146.43,12.8747]
[1727157251130,3.4139,146.47,146.43,12.8747]
[1727157252538,9.46,146.48,146.43,9.46]
[1727157253627,3.41118585,146.52,146.41,1.3846]
[1727157253836,9.46,146.46,146.41,1.3846]
[1727157254034,12.8741,146.46,146.42,3.4148]
[1727157254840,12.8741,146.46,146.42,12.8748]
[1727157257144,3.414,146.47,146.43,3.4147]
[1727157257345,12.874,146.47,146.43,3.4147]
[1727157262146,12.874,146.47,146.43,12.8747]
[1727157262547,6.8226,146.58,146.45,9.46]
[1727157262750,9.46,146.5,146.45,9.46]
[1727157263250,3.4134,146.49,146.46,3.4139]
[1727157265343,1.4351,146.55,146.47,9.46]
[1727157265544,9.46,146.52,146.47,9.46]
[1727157266148,3.413,146.51,146.48,3.4134]
[1727157269853,12.873,146.51,146.48,3.4134]
[1727157271159,3.4131,146.5,146.48,3.4134]
[1727157272352,12.8728,146.52,146.48,9.46]
[1727157273061,12.8728,146.52,146.49,3.4132]
[1727157274461,12.8728,146.52,146.48,12.8735]
[1727157276065,244.5,146.63,146.42,4.64787755]
[1727157276066,3.4122,146.54,146.5,3.4129]
[1727157276268,9.46,146.54,146.5,3.4129]
[1727157276868,80.02233627,146.56,146.5,3.4129]
[1727157277072,80.02233627,146.56,146.51,3.4128]
[1727157277267,9.46,146.55,146.51,3.4128]
[1727157277767,3.4123,146.54,146.51,3.4128]
[1727157279076,3.4123,146.54,146.5,9.46]
[1727157279077,3.4125,146.53,146.5,12.873]
[1727157279278,9.46,146.55,146.5,9.46]
[1727157279873,3.4123,146.54,146.51,3.4127]
[1727157280069,3.4123,146.54,146.5,9.46]
[1727157280470,3.4123,146.54,146.5,12.8729]
[1727157282379,3.4124,146.53,146.5,12.8729]
[1727157283376,9.46,146.56,146.51,12.8727]
[1727157283577,9.46,146.56,146.51,9.46]
[1727157283766,3.412,146.55,146.52,3.4126]
[1727157284573,3.4122,146.54,146.51,12.8727]
[1727157284974,12.872,146.55,146.52,3.4126]
[1727157285369,9.46,146.55,146.51,9.46]
[1727157285574,3.4125,146.53,146.5,3.4129]
[1727157285972,3.4125,146.53,146.49,9.46]
[1727157285973,9.46,146.54,146.49,9.46]
[1727157286280,9.46,146.54,146.48,3.4135]
[1727157286485,1.3278,146.59,146.48,12.8735]
[1727157286486,9.46,146.53,146.48,12.8735]
[1727157287776,3.4127,146.52,146.48,12.8735]
[1727157290176,3.4125,146.53,146.49,12.8733]
[1727157290681,9.46,146.54,146.48,12.8734]
[1727157291073,3.4127,146.52,146.48,9.46]
[1727157291481,9.46,146.54,146.49,12.8732]
[1727157291785,3.4125,146.53,146.49,12.8732]
[1727157292172,3.4125,146.53,146.5,3.4131]
[1727157292480,12.8722,146.54,146.5,3.4131]
[1727157293087,3.4122,146.54,146.51,12.8728]
[1727157296384,1.3278,146.59,146.53,9.46]
[1727157296582,9.46,146.58,146.53,9.46]
[1727157297883,3.4118,146.56,146.53,12.8723]
[1727157298582,12.8714,146.58,146.54,3.412]
[1727157298787,9.46,146.58,146.53,9.46]
[1727157299491,3.4116,146.57,146.53,9.46]
[1727157300893,3.4116,146.57,146.53,12.8723]
[1727157301486,3.412,146.55,146.51,4.1374]
[1727157301686,9.46,146.58,146.53,9.46]
[1727157302784,3.4118,146.56,146.53,12.8724]
[1727157302985,9.46,146.57,146.51,4.1374]
[1727157303182,9.46,146.57,146.51,13.5974]
[1727157303385,3.4121,146.55,146.51,17.0101]
[1727157303787,3.4121,146.55,146.51,13.5974]
[1727157306891,3.4121,146.55,146.52,3.4126]
[1727157307591,3.4118,146.56,146.52,12.8726]
[1727157310601,3.4125,146.53,146.51,1.3644]
[1727157310793,9.46,146.54,146.49,9.46]
[1727157311498,12.8723,146.54,146.5,12.873]
[1727157312900,3.4123,146.54,146.5,12.873]
[1727157314694,3.4123,146.54,146.51,3.4128]
[1727157314897,12.872,146.55,146.51,3.4128]
[1727157316199,3.412,146.55,146.51,12.8728]
[1727157316501,9.46,146.57,146.53,9.46]
[1727157317700,3.412,146.55,146.53,9.46]
[1727157326206,9.46,146.57,146.54,3.412]
[1727157326207,3.4115,146.57,146.54,3.412]
[1727157326507,9.46,146.57,146.52,9.46]
[1727157327909,3.4119,146.55,146.53,3.4123]
[1727157329399,9.46,146.55,146.51,3.4127]
[1727157329601,9.46,146.55,146.51,12.8727]
[1727157330306,3.4123,146.54,146.51,12.8727]
[1727157332203,3.4123,146.54,146.51,9.46]
[1727157336312,3.4124,146.53,146.51,9.46]
[1727157341623,9.46,146.55,146.51,9.46]
[1727157341624,3.4123,146.54,146.51,9.46]
[1727157345122,3.4123,146.54,146.5,3.413]
[1727157345324,3.4123,146.54,146.51,9.46]
[1727157350226,3.4123,146.54,146.5,3.413]
[1727157350425,3.4123,146.54,146.51,16.20315278]
[1727157351024,3.4123,146.54,146.51,9.46]
[1727157351324,3.412,146.55,146.52,9.46]
[1727157351520,9.46,146.57,146.52,9.46]
[1727157351720,9.46,146.57,146.53,9.46]
[1727157352126,3.4119,146.55,146.53,9.46]
[1727157353834,3.4118,146.56,146.53,9.46]
[1727157357429,3.4123,146.54,146.51,3.4128]
[1727157358230,3.4123,146.54,146.5,3.413]
[1727157358632,3.4123,146.54,146.5,12.873]
[1727157364442,3.4123,146.54,146.51,3.4127]
[1727157364643,3.4123,146.54,146.51,12.8727]
[1727157365537,3.4124,146.53,146.5,3.413]
[1727157365742,9.46,146.55,146.5,12.873]
[1727157365937,9.46,146.55,146.51,6.74976383]
[1727157366238,3.4123,146.54,146.5,12.873]
[1727157366443,3.4123,146.54,146.51,6.74898319]
[1727157366640,3.4123,146.54,146.5,12.873]
[1727157366837,3.4123,146.54,146.51,6.74897301]
[1727157367039,3.4123,146.54,146.5,12.873]
[1727157367239,3.4123,146.54,146.51,6.7490496]
[1727157367542,9.46,146.55,146.5,12.873]
[1727157367756,9.46,146.55,146.51,6.74891117]
[1727157367935,3.4133,146.49,146.47,2.7124]
[1727157368245,9.46,146.51,146.47,2.7124]
[1727157368445,9.46,146.51,146.48,6.74952107]
[1727157368743,3.4132,146.5,146.47,2.7124]
[1727157369843,3.4132,146.5,146.47,6.1261]
[1727157375643,9.46,146.51,146.47,6.1261]
[1727157375644,12.873,146.51,146.47,6.1261]
[1727157376044,3.4132,146.5,146.47,2.7124]
[1727157377246,12.873,146.51,146.47,6.1261]
[1727157378644,1.2654,146.57,146.48,9.46]
[1727157378955,9.46,146.53,146.48,9.46]
[1727157379248,9.46,146.5,146.47,2.7124]
[1727157379642,12.8732,146.5,146.47,2.7124]
[1727157380843,12.8732,146.5,146.47,6.1262]
[1727157381349,9.46,146.48,146.47,1.3304]
[1727157381749,9.46,146.48,146.44,6.47668794]
[1727157382053,9.46,146.48,146.43,9.46]
[1727157382246,12.8736,146.48,146.44,3.4144]
[1727157385453,12.8736,146.48,146.43,9.46]
[1727157386046,3.414,146.47,146.43,9.46]
[1727157386941,3.4143,146.45,146.43,9.46]
[1727157387948,3.4145,146.44,146.43,9.46]
[1727157397148,3.415,146.42,146.41,1.3591]
[1727157397760,3.4152,146.41,146.4,1.3609]
[1727157398061,9.46,146.43,146.38,9.46]
[1727157398261,3.4155,146.4,146.38,9.46]
[1727157402661,3.4157,146.39,146.37,9.46]
[1727157402865,9.46,146.42,146.37,9.46]
[1727157403763,3.4158,146.39,146.37,9.46]
[1727157405563,3.4155,146.4,146.38,9.46]
[1727157405763,1.381,146.47,146.39,12.809959]
[1727157405968,9.46,146.45,146.41,9.46]
[1727157406372,3.4152,146.42,146.41,9.46]
[1727157406871,3.4153,146.41,146.4,9.46]
[1727157409174,28.0,146.4,146.12,41.12]
[1727157409378,9.46,146.35,146.27,1.3164]
[1727157409583,3.4172,146.33,146.3,9.46]
[1727157410066,9.46,146.35,146.3,9.46]
[1727157410271,3.4174,146.32,146.3,9.46]
[1727157411078,3.417,146.34,146.3,9.46]
[1727157411282,32.0909,146.4,146.32,9.46]
[1727157411573,9.46,146.37,146.32,9.46]
[1727157412172,3.4166,146.36,146.32,9.46]
[1727157414581,9.46,146.37,146.32,9.46]
[1727157414582,3.4162,146.37,146.32,9.46]
[1727157414780,12.8762,146.37,146.32,9.46]
[1727157415285,12.8762,146.37,146.32,12.8772]
[1727157415481,3.4164,146.36,146.32,12.8772]
[1727157416584,3.4164,146.36,146.32,9.46]
[1727157418480,12.8761,146.37,146.32,12.8771]
[1727157418683,9.46,146.37,146.32,12.8771]
[1727157419785,3.4164,146.36,146.32,12.8771]
[1727157422390,3.4164,146.36,146.32,9.46]
[1727157423690,3.4164,146.36,146.33,9.46]
[1727157431395,4.0909,146.4,146.34,9.46]
[1727157431595,9.46,146.39,146.34,9.46]
[1727157431896,9.46,146.37,146.33,9.46]
[1727157432295,3.4164,146.36,146.33,9.46]
[1727157435106,3.4164,146.36,146.34,9.46]
[1727157435994,1.3252,146.4,146.35,9.46]
[1727157436205,9.46,146.4,146.35,9.46]
[1727157436905,9.46,146.4,146.35,12.8765]
[1727157436906,3.4158,146.39,146.35,12.8765]
[1727157441504,3.4156,146.4,146.37,9.46]
[1727157451419,9.46,146.38,146.33,1.4148]
[1727157451610,9.46,146.35,146.33,1.4148]
[1727157452124,9.46,146.34,146.3,9.46]
[1727157452615,12.877,146.34,146.3,12.8776]
[1727157455413,9.46,146.32,146.27,2.6695]
[1727157455614,9.46,146.28,146.2,82.0]
[1727157455825,9.46,146.28,146.22,2.7565]
[1727157456022,3.4186,146.27,146.23,9.46]
[1727157456728,9.46,146.28,146.23,12.8794]
[1727157457920,12.8783,146.28,146.23,12.8794]
[1727157458317,3.4185,146.27,146.22,6.1761]
[1727157458532,3.4185,146.27,146.23,9.46]
[1727157459828,3.4185,146.27,146.23,12.8794]
[1727157462222,12.8783,146.28,146.23,12.8794]
[1727157467226,3.4185,146.27,146.23,12.8794]
[1727157467431,3.4185,146.27,146.23,9.46]
[1727157467720,9.46,146.28,146.23,9.46]
[1727157467927,9.46,146.28,146.23,12.8793]
[1727157468126,9.46,146.28,146.22,2.7565]
[1727157468435,9.46,146.26,146.22,6.176]
[1727157469332,9.46,146.26,146.22,2.7565]
[1727157469527,3.48926275,146.31,146.16,85.39485667]
[1727157469528,9.46,146.23,146.16,85.39485667]
[1727157469734,6.8343,146.33,146.17,9.46]
[1727157469735,9.46,146.22,146.17,9.46]
[1727157470634,12.8796,146.22,146.18,3.4204]
[1727157470839,9.46,146.24,146.2,9.46]
[1727157471340,12.8793,146.24,146.2,9.46]
[1727157472432,12.8793,146.24,146.2,12.8801]
[1727157473629,3.4193,146.24,146.2,12.8801]
[1727157473830,12.879,146.25,146.2,12.8801]
[1727157474337,9.46,146.23,146.2,3.4201]
[1727157474840,12.8794,146.23,146.19,12.8802]
[1727157478738,9.46,146.25,146.2,9.46]
[1727157478946,9.46,146.26,146.21,9.46]
[1727157479246,12.8788,146.26,146.22,3.4195]
[1727157481135,12.8788,146.26,146.23,3.4194]
[1727157481337,3.4183,146.28,146.22,9.46]
[1727157481539,9.46,146.27,146.22,9.46]
[1727157482856,1.3763,146.29,146.22,9.46]
[1727157483143,1.4369,146.32,146.25,9.46]
[1727157483344,9.46,146.3,146.25,9.46]
[1727157483541,12.8779,146.3,146.26,3.4186]
[1727157485443,12.8779,146.3,146.25,9.46]
[1727157485444,12.8779,146.3,146.27,3.4184]
[1727157488952,9.46,146.31,146.27,9.46]
[1727157489451,9.46,146.31,146.28,3.4181]
[1727157492354,3.4173,146.32,146.28,3.4181]
[1727157492556,12.8771,146.33,146.29,3.418]
[1727157493150,9.46,146.33,146.28,9.46]
[1727157493465,9.46,146.33,146.3,3.4176]
[1727157493645,9.46,146.33,146.28,9.46]
[1727157493845,4.73229825,146.36,146.28,9.46]
[1727157494052,9.46,146.33,146.28,9.46]
[1727157494253,12.8771,146.33,146.29,3.4179]
[1727157501265,3.4173,146.32,146.29,3.4179]
[1727157501768,9.46,146.3,146.25,2.7181]
[1727157501967,9.46,146.29,146.25,1.418]
[1727157502163,9.46,146.29,146.25,3.4187]
[1727157502560,12.878,146.29,146.24,9.46]
[1727157502757,9.46,146.29,146.21,86.2204]
[1727157502957,9.46,146.27,146.23,9.46]
[1727157503563,9.46,146.27,146.24,3.419]
[1727157504364,12.8785,146.27,146.23,3.4193]
[1727157504560,9.46,146.26,146.21,4.1604]
[1727157504769,9.46,146.26,146.21,12.2312]
[1727157504970,3.419,146.25,146.21,15.6509]
[1727157505570,12.8788,146.26,146.21,15.6509]
[1727157505964,12.8788,146.26,146.22,3.4195]
[1727157507976,9.46,146.23,146.19,3.4202]
[1727157508172,9.46,146.22,146.19,3.4202]
[1727157509072,9.46,146.23,146.19,3.4202]
[1727157509770,4.1224,146.28,146.22,9.46]
[1727157509975,1.3353,146.28,146.23,9.46]
[1727157510170,10.7953,146.28,146.23,9.46]
[1727157510775,3.4186,146.27,146.23,12.8793]
[1727157518377,59.37472886,146.29,146.25,9.46]
[1727157519778,62.79282886,146.29,146.26,3.4185]
[1727157522081,9.46,146.27,146.25,3.4189]
[1727157522276,9.46,146.27,146.23,9.46]
[1727157522474,12.8787,146.26,146.22,9.46]
[1727157523276,12.8787,146.26,146.23,3.4193]
[1727157527382,9.46,146.26,146.23,3.4193]
[1727157532891,1.4117,146.32,146.25,9.46]
[1727157533089,9.46,146.3,146.26,9.46]
[1727157533390,3.418,146.29,146.26,9.46]
[1727157534883,3.418,146.29,146.26,12.8786]
[1727157539291,12.8779,146.3,146.26,12.8786]
[1727157540394,9.46,146.31,146.27,3.4184]
[1727157540890,12.8776,146.31,146.27,3.4184]
[1727157541186,12.8776,146.31,146.27,12.8784]
[1727157544587,12.8776,146.31,146.28,3.4182]
[1727157548197,59.35602952,146.35,146.29,9.46]
[1727157548390,68.81602952,146.35,146.3,9.46]
[1727157548588,72.23272952,146.35,146.32,3.4172]
[1727157548796,68.81602952,146.35,146.3,9.46]
[1727157549996,3.4169,146.34,146.31,3.4174]
[1727157550890,12.8769,146.34,146.3,3.4176]
[1727157551092,9.46,146.34,146.3,3.4176]
[1727157551295,9.46,146.33,146.28,9.46]
[1727157551491,3.4174,146.32,146.29,3.4179]
[1727157553907,3.4172,146.33,146.3,3.4177]
[1727157556105,12.8769,146.34,146.3,3.4177]
[1727157560310,3.4171,146.33,146.3,3.4177]
[1727157561011,9.46,146.31,146.29,3.4179]
[1727157561311,9.46,146.31,146.23,4.0563]
[1727157561312,9.46,146.31,146.28,9.46]
[1727157561610,9.46,146.31,146.29,3.4178]
[1727157562009,3.4172,146.33,146.29,3.4178]
[1727157562010,12.8772,146.33,146.29,3.4178]
[1727157563809,12.8772,146.33,146.3,3.4178]
[1727157573313,3.4178,146.3,146.23,4.0563]
[1727157573511,3.4178,146.3,146.25,9.46]
[1727157573512,12.8778,146.3,146.25,9.46]
[1727157573719,9.46,146.3,146.25,9.46]
[1727157574521,9.46,146.3,146.27,3.4183]
[1727157575219,12.8777,146.31,146.27,3.4183]
[1727157576917,3.4178,146.3,146.27,3.4183]
[1727157582627,12.8778,146.3,146.27,3.4183]
[1727157586120,3.418,146.29,146.26,12.8786]
[1727157586325,3.418,146.29,146.26,3.4186]
[1727157586824,12.878,146.29,146.26,3.4186]
[1727157587726,9.46,146.29,146.26,3.4186]
[1727157588928,60.71472952,146.35,146.28,3.4181]
[1727157589131,9.46,146.32,146.28,9.46]
[1727157589825,12.8773,146.32,146.29,3.4179]
[1727157593330,12.8773,146.32,146.3,3.4177]
[1727157596334,12.8773,146.32,146.29,3.4179]
[1727157596536,9.46,146.31,146.29,3.4179]
[1727157600336,9.46,146.31,146.23,4.0563]
[1727157600535,1.3587,146.35,146.23,4.0563]
[1727157600536,9.46,146.3,146.25,9.46]
[1727157600731,9.46,146.29,146.24,15.94456868]
[1727157600955,9.46,146.29,146.26,3.4185]
[1727157601336,9.46,146.28,146.26,3.4185]
[1727157604746,9.46,146.29,146.26,3.4185]
[1727157605951,12.8776,146.31,146.27,3.4183]
[1727157607548,9.46,146.31,146.28,3.4182]
[1727157607847,2.762,146.38,146.29,9.46]
[1727157608048,9.46,146.34,146.29,9.46]
[1727157608243,12.8769,146.34,146.29,9.46]
[1727157608649,12.8769,146.34,146.3,3.4176]
[1727157609450,9.46,146.33,146.28,9.46]
[1727157609745,9.46,146.33,146.3,3.4176]
[1727157610944,9.46,146.33,146.31,3.4175]
[1727157611155,12.8769,146.34,146.31,3.4175]
[1727157612248,6.75617921,146.35,146.32,3.4173]
[1727157612443,9.46,146.36,146.32,9.46]
[1727157613551,12.8765,146.36,146.33,3.4169]
[1727157613855,9.46,146.35,146.33,3.4169]
[1727157618054,9.46,146.34,146.29,13.5596]
[1727157618653,3.44521156,146.36,146.29,13.5596]
[1727157618863,9.46,146.34,146.29,13.5596]
[1727157619248,9.46,146.34,146.31,3.4174]
[1727157620849,12.8769,146.34,146.31,3.4174]
[1727157621057,9.46,146.32,146.29,2.7971]
[1727157621249,9.46,146.3,146.22,7.45235911]
[1727157621453,9.46,146.28,146.24,9.46]
[1727157621659,9.46,146.28,146.26,3.4186]
[1727157622060,9.46,146.28,146.24,9.46]
[1727157622253,9.46,146.28,146.25,8.08335975]
[1727157622457,9.46,146.28,146.25,3.4188]
[1727157623360,9.46,146.28,146.26,3.4187]
[1727157624356,9.46,146.28,146.25,3.4188]
[1727157625360,9.46,146.28,146.22,4.1305]
[1727157625361,9.46,146.26,146.22,4.1305]
[1727157625561,9.46,146.26,146.23,6.48438385]
[1727157625862,9.46,146.26,146.22,4.1305]
[1727157626065,9.46,146.26,146.23,3.4192]
[1727157626368,9.46,146.26,146.22,4.1305]
[1727157626569,3.419,146.25,146.22,4.1305]
[1727157626867,12.879,146.25,146.22,2.7487]
[1727157627060,9.46,146.25,146.22,2.7487]
[1727157628164,9.46,146.25,146.22,6.1683]
[1727157631170,9.46,146.25,146.22,3.4196]
[1727157632567,9.46,146.26,146.23,3.4193]
[1727157632772,1.3436,146.32,146.24,9.46]
[1727157633073,1.3436,146.32,146.18,4.0806]
[1727157633074,9.46,146.29,146.25,9.46]
[1727157633468,12.8781,146.29,146.25,12.8787]
[1727157633860,12.8781,146.29,146.25,3.4187]
[1727157634570,12.8781,146.29,146.26,3.4186]
[1727157635163,9.46,146.29,146.26,3.4186]
[1727157635776,9.46,146.29,146.26,12.8786]
[1727157636379,12.8779,146.3,146.27,3.4185]
[1727157636674,3.4176,146.31,146.27,9.46]
[1727157636872,9.46,146.32,146.27,9.46]
[1727157637270,12.8774,146.32,146.29,3.418]
[1727157638178,3.4175,146.31,146.29,3.418]
[1727157640375,9.46,146.32,146.29,3.418]
[1727157640582,1.3293,146.35,146.31,3.4175]
[1727157640771,9.46,146.33,146.28,9.46]
[1727157640972,12.8769,146.34,146.3,9.46]
[1727157641173,12.8769,146.34,146.31,3.4173]
[1727157642184,12.8767,146.35,146.32,3.4172]
[1727157642574,3.4167,146.35,146.32,3.4172]
[1727157646588,3.4169,146.34,146.31,3.4175]
[1727157648286,3.4169,146.34,146.31,12.8775]
[1727157648782,3.4167,146.35,146.32,12.8773]
[1727157649378,3.4164,146.36,146.33,12.877]
[1727157649789,9.46,146.36,146.32,9.46]
[1727157650276,3.4166,146.35,146.32,12.8772]
[1727157652891,3.4164,146.36,146.33,9.46]
[1727157653793,3.4164,146.36,146.33,12.8769]
[1727157658593,3.4164,146.36,146.33,3.4169]
[1727157659794,12.8767,146.35,146.32,3.4171]
[1727157660806,3.4167,146.35,146.32,12.8771]
[1727157661106,12.8765,146.36,146.33,3.417]
[1727157661699,3.4165,146.36,146.34,3.4168]
[1727157662102,3.4165,146.36,146.34,12.8768]
[1727157662906,3.416,146.38,146.35,12.8766]
[1727157663212,59.33127244,146.41,146.36,9.46]
[1727157663500,3.4152,146.41,146.39,3.4156]
[1727157663908,10.8818,146.43,146.38,9.46]
[1727157664109,9.46,146.41,146.37,12.876]
[1727157664414,1.4218,146.43,146.37,9.46]
[1727157664706,9.46,146.42,146.39,3.4155]
[1727157664902,9.46,146.42,146.38,9.46]
[1727157665204,3.4155,146.4,146.38,9.46]
[1727157665404,3.4155,146.4,146.37,9.46]
[1727157665802,3.4155,146.4,146.37,12.876]
[1727157668105,20.53,146.54,146.39,9.46]
[1727157668313,9.46,146.47,146.43,9.46]
[1727157668809,3.4142,146.46,146.43,9.46]
[1727157672112,3.4142,146.46,146.43,12.8747]
[1727157674605,9.46,146.46,146.42,9.46]
[1727157675708,9.46,146.46,146.43,9.46]
[1727157675914,1.3078,146.5,146.45,9.46]
[1727157676109,9.46,146.5,146.45,9.46]
[1727157676810,3.4136,146.48,146.45,12.8742]
[1727157677814,3.4134,146.49,146.45,12.8742]
[1727157678812,3.4134,146.49,146.45,3.4142]
[1727157679013,3.4134,146.49,146.46,12.874]
[1727157680810,2.6301,146.55,146.48,9.46]
[1727157681109,2.6301,146.55,146.5,9.46]
[1727157681110,12.0901,146.55,146.5,9.46]
[1727157681410,9.46,146.52,146.44,92.6719025]
[1727157681916,9.46,146.51,146.46,9.46]
[1727157682310,9.46,146.51,146.47,9.46]
[1727157682915,3.4132,146.5,146.47,12.8738]
[1727157685109,3.4129,146.51,146.48,12.8735]
[1727157685409,3.4129,146.51,146.5,9.46]
[1727157686117,3.4127,146.52,146.5,9.46]
[1727157688115,9.46,146.52,146.44,92.6719025]
[1727157688315,9.46,146.52,146.47,9.46]
[1727157689820,3.4132,146.5,146.47,12.8737]
[1727157690023,3.4132,146.5,146.48,9.46]
[1727157693215,3.4129,146.51,146.48,12.8735]
[1727157693714,3.4129,146.51,146.48,9.46]
[1727157693915,3.4127,146.52,146.49,12.8733]
[1727157694311,3.4127,146.52,146.49,9.46]
[1727157695216,3.4127,146.52,146.49,12.8732]
[1727157700721,3.4131,146.5,146.47,9.46]
[1727157701828,3.4131,146.5,146.48,3.4136]
[1727157702127,3.4131,146.5,146.48,12.8736]
[1727157705026,9.46,146.54,146.49,12.8733]
[1727157705327,9.46,146.54,146.49,3.4133]
[1727157705727,6.11791544,146.55,146.49,3.4133]
[1727157705932,9.46,146.53,146.49,3.4133]
[1727157707028,3.4128,146.52,146.49,12.8733]
[1727157709027,3.4129,146.51,146.49,3.4133]
[1727157709227,3.4129,146.51,146.48,3.4135]
[1727157709623,3.4129,146.51,146.48,12.8735]
[1727157715035,3.4127,146.52,146.49,3.4133]
[1727157715531,12.8727,146.52,146.49,3.4133]
[1727157716038,3.4129,146.51,146.49,3.4133]
[1727157717532,9.46,146.5,146.44,92.6719025]
[1727157717731,6.11791544,146.55,146.44,102.1319025]
[1727157717732,9.46,146.49,146.44,102.1319025]
[1727157718035,9.46,146.49,146.45,12.8741]
[1727157718539,3.4136,146.48,146.45,12.8741]
[1727157720339,3.4136,146.48,146.46,3.414]
[1727157722034,3.414,146.47,146.44,92.6719025]
[1727157722240,3.414,146.47,146.43,2.6849]
[1727157722241,9.46,146.46,146.41,9.46]
[1727157722731,9.46,146.46,146.43,3.4147]
[1727157722732,3.4142,146.46,146.43,3.4147]
[1727157723041,12.8742,146.46,146.43,3.4147]
[1727157723240,12.94181544,146.55,146.45,9.46]
[1727157723429,9.46,146.5,146.45,9.46]
[1727157724138,3.4136,146.48,146.45,12.8741]
[1727157731241,3.4136,146.48,146.45,3.4141]
[1727157732645,9.46,146.47,146.42,9.46]
[1727157733239,3.4142,146.46,146.43,3.4146]
[1727157737345,9.46,146.46,146.41,2.7364]
[1727157737654,9.46,146.46,146.41,12.1964]
[1727157737842,3.4144,146.45,146.42,3.4149]
[1727157738040,3.4144,146.45,146.42,9.46]
[1727157738240,9.46,146.47,146.43,9.46]
[1727157738449,3.414,146.47,146.44,3.4144]
[1727157743948,9.46,146.47,146.43,3.4146]
[1727157744853,3.4144,146.45,146.43,3.4146]
[1727157745654,3.4144,146.45,146.42,12.8748]
[1727157745858,3.4147,146.43,146.41,12.1964]
[1727157746046,3.4147,146.43,146.38,4.65682686]
[1727157746350,3.4147,146.43,146.4,9.46]
[1727157746943,3.4147,146.43,146.4,12.8754]
[1727157747550,3.415,146.42,146.39,3.4156]
[1727157748257,12.8748,146.43,146.4,3.4154]
[1727157748554,9.46,146.47,146.42,9.46]
[1727157748951,3.4144,146.45,146.42,12.8749]
[1727157749352,9.46,146.47,146.42,9.46]
[1727157749554,9.46,146.49,146.44,9.46]
[1727157749951,3.414,146.47,146.44,12.8744]
[1727157751354,3.414,146.47,146.45,9.46]
[1727157754257,2.7701,146.54,146.46,9.46]
[1727157754462,9.46,146.52,146.48,9.46]
[1727157755453,9.46,146.49,146.45,9.46]
[1727157755659,9.46,146.49,146.44,10.7835]
[1727157755962,3.4136,146.48,146.45,3.4142]
[1727157757459,3.4136,146.48,146.45,12.8742]
[1727157762567,3.414,146.47,146.44,14.198]
[1727157762770,9.46,146.47,146.43,10.76]
[1727157763362,3.4141,146.46,146.43,14.1746]